[Event "Titled Tuesday Blitz June 6 Early 2023"]
[White "Schuh, Karsten"]
[Black "gau_npukyputb"]
[WhiteFideId "4637950"]
[WhiteElo "2177"]
[BlackElo "2716"]
[Result "0-1"]
[Round "2"]
[TimeControl "180+2"]
[Date "2023.06.06"]
[WhiteClock "0:00:08"]
[BlackClock "0:00:57"]
[Board "101"]

1. Nf3 {[%clk 0:03:00]}  c5 {[%clk 0:02:56]} 2. c4 {[%clk 0:02:59]}  Nc6 {[%clk 0:02:56]} 3. g3 {[%clk 0:02:59]}  g6 {[%clk 0:02:56]} 4. Bg2 {[%clk 0:02:59]}  Bg7 {[%clk 0:02:57]} 5. O-O {[%clk 0:03:00]}  Nf6 {[%clk 0:02:57]} 6. Nc3 {[%clk 0:02:59]}  O-O {[%clk 0:02:58]} 7. d3 {[%clk 0:02:57]}  d6 {[%clk 0:02:59]} 8. Bf4 {[%clk 0:02:55]}  Bd7 {[%clk 0:02:59]} 9. Qd2 {[%clk 0:02:55]}  Re8 {[%clk 0:02:59]} 10. Bh6 {[%clk 0:02:54]}  Bh8 {[%clk 0:02:58]} 11. Rab1 {[%clk 0:02:54]}  Rb8 {[%clk 0:02:58]} 12. a3 {[%clk 0:02:53]}  a6 {[%clk 0:02:59]} 13. b4 {[%clk 0:02:53]}  cxb4 {[%clk 0:03:00]} 14. axb4 {[%clk 0:02:53]}  b5 {[%clk 0:03:01]} 15. cxb5 {[%clk 0:02:42]}  axb5 {[%clk 0:03:01]} 16. Rfc1 {[%clk 0:02:40]}  Ng4 {[%clk 0:03:01]} 17. Bg5 {[%clk 0:02:36]}  Nd4 {[%clk 0:02:52]} 18. Nxd4 {[%clk 0:02:24]}  Bxd4 {[%clk 0:02:53]} 19. e3 {[%clk 0:02:22]}  Bg7 {[%clk 0:02:52]} 20. e4 {[%clk 0:02:04]}  h6 {[%clk 0:02:47]} 21. Bf4 {[%clk 0:01:59]}  g5 {[%clk 0:02:46]} 22. Be3 {[%clk 0:01:59]}  Nxe3 {[%clk 0:02:43]} 23. Qxe3 {[%clk 0:01:59]}  e6 {[%clk 0:02:22]} 24. d4 {[%clk 0:01:56]}  Qb6 {[%clk 0:02:21]} 25. Ne2 {[%clk 0:01:49]}  Rec8 {[%clk 0:02:20]} 26. Qd3 {[%clk 0:01:27]}  Rc4 {[%clk 0:02:09]} 27. Rxc4 {[%clk 0:01:12]}  bxc4 {[%clk 0:02:10]} 28. Qxc4 {[%clk 0:01:12]}  Bb5 {[%clk 0:02:10]} 29. Qc2 {[%clk 0:01:12]}  Bxe2 {[%clk 0:02:10]} 30. Qxe2 {[%clk 0:01:12]}  Bxd4 {[%clk 0:02:11]} 31. b5 {[%clk 0:01:11]}  Rc8 {[%clk 0:02:01]} 32. e5 {[%clk 0:01:02]}  Bxe5 {[%clk 0:01:57]} 33. Bf1 {[%clk 0:00:37]}  Kg7 {[%clk 0:01:45]} 34. Rd1 {[%clk 0:00:31]}  Rc3 {[%clk 0:01:39]} 35. Qa2 {[%clk 0:00:20]}  Qc5 {[%clk 0:01:34]} 36. Qe2 {[%clk 0:00:18]}  Rb3 {[%clk 0:01:28]} 37. Qd2 {[%clk 0:00:15]}  Rb2 {[%clk 0:01:19]} 38. Qe3 {[%clk 0:00:16]}  Qxe3 {[%clk 0:01:19]} 39. fxe3 {[%clk 0:00:16]}  d5 {[%clk 0:01:17]} 40. Rc1 {[%clk 0:00:16]}  f5 {[%clk 0:01:15]} 41. Rc6 {[%clk 0:00:15]}  Kf6 {[%clk 0:01:14]} 42. b6 {[%clk 0:00:15]}  g4 {[%clk 0:01:06]} 43. Ba6 {[%clk 0:00:15]}  h5 {[%clk 0:01:06]} 44. Bc8 {[%clk 0:00:14]}  Kg5 {[%clk 0:00:57]} 45. Bxe6 {[%clk 0:00:14]}  d4 {[%clk 0:00:55]} 46. exd4 {[%clk 0:00:11]}  Bxd4+ {[%clk 0:00:56]} 47. Kh1 {[%clk 0:00:11]}  Bxb6 {[%clk 0:00:56]} 48. Bf7 {[%clk 0:00:10]}  Rb1+ {[%clk 0:00:56]} 49. Kg2 {[%clk 0:00:08]}  Rg1# {[%clk 0:00:57]} 0-1


[Site "https://www.chess.com"]

[Event "Titled Tuesday Blitz June 6 Early 2023"]
[White "LeoLV10"]
[Black "Gomez Ledo, Roberto Carlos"]
[BlackFideId "3507076"]
[WhiteElo "2402"]
[BlackElo "2378"]
[Result "1-0"]
[Round "2"]
[TimeControl "180+2"]
[Date "2023.06.06"]
[WhiteClock "0:00:16"]
[BlackClock "0:00:03"]
[Board "105"]

1. e4 {[%clk 0:03:00]}  e5 {[%clk 0:02:55]} 2. Nf3 {[%clk 0:03:00]}  Nc6 {[%clk 0:02:54]} 3. Bb5 {[%clk 0:03:00]}  a6 {[%clk 0:02:54]} 4. Ba4 {[%clk 0:03:00]}  Nf6 {[%clk 0:02:54]} 5. O-O {[%clk 0:03:00]}  Be7 {[%clk 0:02:53]} 6. c3 {[%clk 0:02:59]}  Nxe4 {[%clk 0:02:35]} 7. Bxc6 {[%clk 0:02:59]}  dxc6 {[%clk 0:02:33]} 8. Nxe5 {[%clk 0:03:00]}  O-O {[%clk 0:02:32]} 9. d4 {[%clk 0:03:00]}  Nf6 {[%clk 0:02:20]} 10. Re1 {[%clk 0:02:58]}  c5 {[%clk 0:02:18]} 11. Be3 {[%clk 0:02:47]}  cxd4 {[%clk 0:02:14]} 12. cxd4 {[%clk 0:02:44]}  Be6 {[%clk 0:02:09]} 13. Nc3 {[%clk 0:02:44]}  Nd5 {[%clk 0:02:09]} 14. Qf3 {[%clk 0:02:36]}  Nxe3 {[%clk 0:02:05]} 15. fxe3 {[%clk 0:02:35]}  c6 {[%clk 0:02:02]} 16. Rad1 {[%clk 0:02:34]}  Qb6 {[%clk 0:01:59]} 17. Nd3 {[%clk 0:02:32]}  Rad8 {[%clk 0:01:51]} 18. a3 {[%clk 0:02:25]}  Bc4 {[%clk 0:01:39]} 19. Na4 {[%clk 0:02:01]}  Qb5 {[%clk 0:01:31]} 20. Nac5 {[%clk 0:02:01]}  Bxc5 {[%clk 0:01:04]} 21. Nxc5 {[%clk 0:02:00]}  Qxb2 {[%clk 0:01:02]} 22. a4 {[%clk 0:01:42]}  Bd5 {[%clk 0:00:57]} 23. Qg3 {[%clk 0:01:40]}  b5 {[%clk 0:00:46]} 24. a5 {[%clk 0:01:18]}  Rfe8 {[%clk 0:00:42]} 25. Nxa6 {[%clk 0:01:15]}  Re7 {[%clk 0:00:33]} 26. Nc5 {[%clk 0:01:13]}  Rde8 {[%clk 0:00:28]} 27. e4 {[%clk 0:01:07]}  Bc4 {[%clk 0:00:19]} 28. a6 {[%clk 0:01:01]}  b4 {[%clk 0:00:17]} 29. Rb1 {[%clk 0:01:01]}  Qa3 {[%clk 0:00:16]} 30. Qxa3 {[%clk 0:00:57]}  bxa3 {[%clk 0:00:17]} 31. Ra1 {[%clk 0:00:56]}  a2 {[%clk 0:00:17]} 32. Rec1 {[%clk 0:00:56]}  Bb5 {[%clk 0:00:13]} 33. Rxa2 {[%clk 0:00:56]}  Ra7 {[%clk 0:00:14]} 34. Rca1 {[%clk 0:00:50]}  Rea8 {[%clk 0:00:14]} 35. Ra5 {[%clk 0:00:49]}  Bc4 {[%clk 0:00:10]} 36. Kf2 {[%clk 0:00:45]}  Kf8 {[%clk 0:00:10]} 37. Ke3 {[%clk 0:00:46]}  Ke7 {[%clk 0:00:10]} 38. Kd2 {[%clk 0:00:46]}  Kd6 {[%clk 0:00:09]} 39. Kc3 {[%clk 0:00:46]}  Bb5 {[%clk 0:00:09]} 40. Kb4 {[%clk 0:00:38]}  Kc7 {[%clk 0:00:09]} 41. Rxb5 {[%clk 0:00:38]}  cxb5 {[%clk 0:00:09]} 42. Kxb5 {[%clk 0:00:38]}  Rb8+ {[%clk 0:00:09]} 43. Ka5 {[%clk 0:00:39]}  Kc6 {[%clk 0:00:08]} 44. Rc1 {[%clk 0:00:33]}  Rb5+ {[%clk 0:00:08]} 45. Ka4 {[%clk 0:00:34]}  Kb6 {[%clk 0:00:07]} 46. e5 {[%clk 0:00:28]}  Rc7 {[%clk 0:00:05]} 47. g4 {[%clk 0:00:24]}  Ra5+ {[%clk 0:00:05]} 48. Kb4 {[%clk 0:00:24]}  Rb5+ {[%clk 0:00:05]} 49. Ka4 {[%clk 0:00:24]}  Ra5+ {[%clk 0:00:06]} 50. Kb3 {[%clk 0:00:22]}  Rb5+ {[%clk 0:00:05]} 51. Ka3 {[%clk 0:00:22]}  Ra5+ {[%clk 0:00:05]} 52. Kb2 {[%clk 0:00:16]}  Rb5+ {[%clk 0:00:05]} 53. Kc2 {[%clk 0:00:15]}  Rbxc5+ {[%clk 0:00:05]} 54. dxc5+ {[%clk 0:00:15]}  Rxc5+ {[%clk 0:00:06]} 55. Kd2 {[%clk 0:00:16]}  Rxc1 {[%clk 0:00:07]} 56. Kxc1 {[%clk 0:00:17]}  Kxa6 {[%clk 0:00:07]} 57. Kd2 {[%clk 0:00:17]}  Kb5 {[%clk 0:00:08]} 58. Ke3 {[%clk 0:00:18]}  Kc5 {[%clk 0:00:07]} 59. Ke4 {[%clk 0:00:19]}  g6 {[%clk 0:00:07]} 60. h4 {[%clk 0:00:18]}  h6 {[%clk 0:00:07]} 61. e6 {[%clk 0:00:15]}  fxe6 {[%clk 0:00:05]} 62. Ke5 {[%clk 0:00:15]}  g5 {[%clk 0:00:03]} 63. hxg5 {[%clk 0:00:15]}  hxg5 {[%clk 0:00:03]} 64. Kxe6 {[%clk 0:00:15]}  Kc6 {[%clk 0:00:03]} 65. Kf5 {[%clk 0:00:16]}  Kd7 {[%clk 0:00:04]} 66. Kxg5 {[%clk 0:00:17]}  Ke7 {[%clk 0:00:05]} 67. Kh6 {[%clk 0:00:17]}  Kf8 {[%clk 0:00:05]} 68. g5 {[%clk 0:00:15]}  Kg8 {[%clk 0:00:03]} 69. Kg6 {[%clk 0:00:16]}  Kf8 {[%clk 0:00:03]} 70. Kh7 {[%clk 0:00:16]} 1-0


[Site "https://www.chess.com"]

[Event "Titled Tuesday Blitz June 6 Early 2023"]
[White "Lopez Idarraga, Daniel Eduardo"]
[Black "Khumalo, Keith"]
[WhiteFideId "4405501"]
[BlackFideId "14319470"]
[WhiteElo "1980"]
[BlackElo "2056"]
[Result "0-1"]
[Round "2"]
[TimeControl "180+2"]
[Date "2023.06.06"]
[WhiteClock "0:00:43"]
[BlackClock "0:01:23"]
[Board "106"]

1. d4 {[%clk 0:03:00]}  Nf6 {[%clk 0:02:53]} 2. Bf4 {[%clk 0:03:01]}  c5 {[%clk 0:02:53]} 3. e3 {[%clk 0:03:01]}  Qb6 {[%clk 0:02:53]} 4. Na3 {[%clk 0:03:00]}  d6 {[%clk 0:02:50]} 5. Nc4 {[%clk 0:03:00]}  Qc7 {[%clk 0:02:51]} 6. Nf3 {[%clk 0:02:58]}  b6 {[%clk 0:02:44]} 7. c3 {[%clk 0:02:57]}  Bb7 {[%clk 0:02:44]} 8. Bd3 {[%clk 0:02:55]}  a6 {[%clk 0:02:44]} 9. a4 {[%clk 0:02:53]}  Nbd7 {[%clk 0:02:44]} 10. h3 {[%clk 0:02:52]}  g6 {[%clk 0:02:36]} 11. O-O {[%clk 0:02:51]}  Bg7 {[%clk 0:02:37]} 12. Bh2 {[%clk 0:02:50]}  O-O {[%clk 0:02:37]} 13. Re1 {[%clk 0:02:50]}  Rfe8 {[%clk 0:02:36]} 14. e4 {[%clk 0:02:49]}  e5 {[%clk 0:02:34]} 15. dxe5 {[%clk 0:02:48]}  Nxe5 {[%clk 0:02:33]} 16. Nfxe5 {[%clk 0:02:12]}  dxe5 {[%clk 0:02:34]} 17. f3 {[%clk 0:02:13]}  Rad8 {[%clk 0:02:20]} 18. Qc2 {[%clk 0:02:06]}  b5 {[%clk 0:02:19]} 19. axb5 {[%clk 0:02:05]}  axb5 {[%clk 0:02:20]} 20. Ne3 {[%clk 0:02:06]}  c4 {[%clk 0:02:17]} 21. Bf1 {[%clk 0:02:05]}  Nh5 {[%clk 0:02:17]} 22. Rad1 {[%clk 0:02:00]}  Bh6 {[%clk 0:02:15]} 23. Ng4 {[%clk 0:01:57]}  Bf4 {[%clk 0:02:10]} 24. Bxf4 {[%clk 0:01:52]}  exf4 {[%clk 0:02:11]} 25. Rxd8 {[%clk 0:01:47]}  Rxd8 {[%clk 0:02:09]} 26. Rd1 {[%clk 0:01:48]}  Qc5+ {[%clk 0:02:09]} 27. Kh2 {[%clk 0:01:47]}  Rb8 {[%clk 0:01:46]} 28. Qd2 {[%clk 0:01:36]}  Rf8 {[%clk 0:01:30]} 29. Qd6 {[%clk 0:01:27]}  Qxd6 {[%clk 0:01:25]} 30. Rxd6 {[%clk 0:01:28]}  Bc8 {[%clk 0:01:26]} 31. Rb6 {[%clk 0:01:23]}  Bxg4 {[%clk 0:01:25]} 32. hxg4 {[%clk 0:01:18]}  Ng3 {[%clk 0:01:24]} 33. Kg1 {[%clk 0:01:18]}  Rd8 {[%clk 0:01:25]} 34. Rf6 {[%clk 0:00:43]}  Rd1 {[%clk 0:01:22]} 35. Rxf4 {[%clk 0:00:43]}  Ne2+ {[%clk 0:01:23]} 0-1


[Site "https://www.chess.com"]

[Event "Titled Tuesday Blitz June 6 Early 2023"]
[White "Ruiz Aguilar, Pablo Alexander"]
[Black "Goltsev, Dmitry"]
[WhiteFideId "4401352"]
[BlackFideId "24176710"]
[WhiteElo "2111"]
[BlackElo "2356"]
[Result "0-1"]
[Round "2"]
[TimeControl "180+2"]
[Date "2023.06.06"]
[WhiteClock "0:00:05"]
[BlackClock "0:00:11"]
[Board "107"]

1. e4 {[%clk 0:03:00]}  e6 {[%clk 0:02:59]} 2. d4 {[%clk 0:02:59]}  d5 {[%clk 0:03:00]} 3. e5 {[%clk 0:03:00]}  c5 {[%clk 0:03:00]} 4. c3 {[%clk 0:03:00]}  Nc6 {[%clk 0:03:01]} 5. Nf3 {[%clk 0:03:00]}  Qb6 {[%clk 0:03:01]} 6. Be2 {[%clk 0:02:59]}  cxd4 {[%clk 0:03:02]} 7. cxd4 {[%clk 0:02:59]}  Nge7 {[%clk 0:03:02]} 8. Nc3 {[%clk 0:02:54]}  Nf5 {[%clk 0:03:03]} 9. Na4 {[%clk 0:02:54]}  Qd8 {[%clk 0:03:02]} 10. O-O {[%clk 0:02:49]}  h5 {[%clk 0:03:00]} 11. Bg5 {[%clk 0:02:47]}  Be7 {[%clk 0:02:59]} 12. Bxe7 {[%clk 0:02:47]}  Qxe7 {[%clk 0:03:00]} 13. Rc1 {[%clk 0:02:47]}  g5 {[%clk 0:03:00]} 14. Bb5 {[%clk 0:02:41]}  g4 {[%clk 0:02:59]} 15. Rxc6 {[%clk 0:02:34]}  bxc6 {[%clk 0:02:59]} 16. Bxc6+ {[%clk 0:02:34]}  Bd7 {[%clk 0:02:59]} 17. Bxa8 {[%clk 0:02:34]}  gxf3 {[%clk 0:02:59]} 18. Nc5 {[%clk 0:02:31]}  fxg2 {[%clk 0:02:41]} 19. Re1 {[%clk 0:02:28]}  h4 {[%clk 0:01:55]} 20. Bb7 {[%clk 0:02:10]}  h3 {[%clk 0:01:52]} 21. Ba6 {[%clk 0:01:59]}  Bc6 {[%clk 0:01:37]} 22. b4 {[%clk 0:01:32]}  Rh4 {[%clk 0:01:10]} 23. b5 {[%clk 0:01:22]}  Rxd4 {[%clk 0:01:10]} 24. Qh5 {[%clk 0:00:40]}  Qxc5 {[%clk 0:01:08]} 25. Qh8+ {[%clk 0:00:35]}  Ke7 {[%clk 0:00:59]} 26. Qf6+ {[%clk 0:00:33]}  Kd7 {[%clk 0:00:58]} 27. bxc6+ {[%clk 0:00:30]}  Kxc6 {[%clk 0:00:57]} 28. Qxf7 {[%clk 0:00:24]}  Qe7 {[%clk 0:00:55]} 29. Qg8 {[%clk 0:00:24]}  Kb6 {[%clk 0:00:21]} 30. Be2 {[%clk 0:00:15]}  Rb4 {[%clk 0:00:17]} 31. Qc8 {[%clk 0:00:11]}  Nd4 {[%clk 0:00:16]} 32. Bg4 {[%clk 0:00:09]}  Qc7 {[%clk 0:00:13]} 33. Qf8 {[%clk 0:00:05]}  Rb2 {[%clk 0:00:13]} 34. Qa3 {[%clk 0:00:05]}  Qc2 {[%clk 0:00:11]} 0-1


[Site "https://www.chess.com"]

[Event "Titled Tuesday Blitz June 6 Early 2023"]
[White "Antonio, Jorge Carlos"]
[Black "MKlose11"]
[WhiteFideId "113190"]
[WhiteElo "2247"]
[BlackElo "2558"]
[Result "0-1"]
[Round "2"]
[TimeControl "180+2"]
[Date "2023.06.06"]
[WhiteClock "0:00:14"]
[BlackClock "0:01:17"]
[Board "111"]

1. d4 {[%clk 0:03:00]}  Nf6 {[%clk 0:02:56]} 2. Nf3 {[%clk 0:03:01]}  c5 {[%clk 0:02:54]} 3. c3 {[%clk 0:03:00]}  cxd4 {[%clk 0:02:54]} 4. cxd4 {[%clk 0:02:59]}  d6 {[%clk 0:02:54]} 5. e3 {[%clk 0:02:59]}  g6 {[%clk 0:02:55]} 6. Bd3 {[%clk 0:02:59]}  Bg7 {[%clk 0:02:55]} 7. O-O {[%clk 0:02:59]}  O-O {[%clk 0:02:55]} 8. Bd2 {[%clk 0:03:00]}  b6 {[%clk 0:02:56]} 9. Bc3 {[%clk 0:03:00]}  Ba6 {[%clk 0:02:56]} 10. Bxa6 {[%clk 0:02:57]}  Nxa6 {[%clk 0:02:57]} 11. Nbd2 {[%clk 0:02:57]}  Nc7 {[%clk 0:02:57]} 12. Rc1 {[%clk 0:02:54]}  d5 {[%clk 0:02:56]} 13. Re1 {[%clk 0:02:53]}  Nb5 {[%clk 0:02:54]} 14. a4 {[%clk 0:02:43]}  Nd6 {[%clk 0:02:54]} 15. Ne5 {[%clk 0:02:39]}  Rc8 {[%clk 0:02:52]} 16. Qb3 {[%clk 0:02:30]}  e6 {[%clk 0:02:32]} 17. Bb4 {[%clk 0:02:29]}  a5 {[%clk 0:02:23]} 18. Bxd6 {[%clk 0:02:28]}  Qxd6 {[%clk 0:02:22]} 19. Qb5 {[%clk 0:02:18]}  Rfd8 {[%clk 0:02:18]} 20. Rc6 {[%clk 0:02:11]}  Rxc6 {[%clk 0:02:16]} 21. Nxc6 {[%clk 0:02:11]}  Rc8 {[%clk 0:02:08]} 22. Ne5 {[%clk 0:01:57]}  Ne8 {[%clk 0:02:04]} 23. Ndf3 {[%clk 0:01:36]}  f6 {[%clk 0:02:01]} 24. Nd7 {[%clk 0:01:20]}  Nc7 {[%clk 0:01:52]} 25. Qxb6 {[%clk 0:01:07]}  Qxd7 {[%clk 0:01:52]} 26. Qxa5 {[%clk 0:01:06]}  Ra8 {[%clk 0:01:48]} 27. Qb6 {[%clk 0:01:02]}  Rxa4 {[%clk 0:01:47]} 28. Rc1 {[%clk 0:01:02]}  Ne8 {[%clk 0:01:46]} 29. h4 {[%clk 0:00:56]}  Bf8 {[%clk 0:01:46]} 30. Rc6 {[%clk 0:00:51]}  Rb4 {[%clk 0:01:42]} 31. Qa6 {[%clk 0:00:48]}  Nc7 {[%clk 0:01:39]} 32. Rxc7 {[%clk 0:00:34]}  Qxc7 {[%clk 0:01:40]} 33. Qxe6+ {[%clk 0:00:34]}  Qf7 {[%clk 0:01:40]} 34. Qc8 {[%clk 0:00:29]}  Rxb2 {[%clk 0:01:39]} 35. h5 {[%clk 0:00:29]}  Rb7 {[%clk 0:01:31]} 36. hxg6 {[%clk 0:00:28]}  hxg6 {[%clk 0:01:32]} 37. Qg4 {[%clk 0:00:26]}  Rc7 {[%clk 0:01:25]} 38. g3 {[%clk 0:00:27]}  Bg7 {[%clk 0:01:24]} 39. Nh4 {[%clk 0:00:26]}  Kh7 {[%clk 0:01:22]} 40. Kg2 {[%clk 0:00:25]}  f5 {[%clk 0:01:18]} 41. Qf4 {[%clk 0:00:20]}  Bf6 {[%clk 0:01:16]} 42. Nf3 {[%clk 0:00:17]}  Kg7 {[%clk 0:01:16]} 43. Ne5 {[%clk 0:00:17]}  Bxe5 {[%clk 0:01:15]} 44. Qxe5+ {[%clk 0:00:17]}  Kh7 {[%clk 0:01:15]} 45. Qf4 {[%clk 0:00:17]}  Re7 {[%clk 0:01:14]} 46. Qg5 {[%clk 0:00:16]}  Kg7 {[%clk 0:01:15]} 47. Qf4 {[%clk 0:00:15]}  Qe6 {[%clk 0:01:15]} 48. Kf3 {[%clk 0:00:13]}  Qe4+ {[%clk 0:01:15]} 49. Qxe4 {[%clk 0:00:13]}  dxe4+ {[%clk 0:01:16]} 50. Kf4 {[%clk 0:00:13]}  Rc7 {[%clk 0:01:16]} 51. Ke5 {[%clk 0:00:13]}  Rc2 {[%clk 0:01:16]} 52. d5 {[%clk 0:00:12]}  Rxf2 {[%clk 0:01:16]} 53. Ke6 {[%clk 0:00:13]}  Re2 {[%clk 0:01:16]} 54. d6 {[%clk 0:00:13]}  Rxe3 {[%clk 0:01:16]} 55. d7 {[%clk 0:00:13]}  Rd3 {[%clk 0:01:17]} 56. Ke7 {[%clk 0:00:13]}  e3 {[%clk 0:01:17]} 57. d8=Q {[%clk 0:00:13]}  Rxd8 {[%clk 0:01:16]} 58. Kxd8 {[%clk 0:00:14]}  e2 {[%clk 0:01:17]} 0-1


[Site "https://www.chess.com"]

[Event "Titled Tuesday Blitz June 6 Early 2023"]
[White "Amitpal, Singh"]
[Black "Omelja, Artem"]
[WhiteFideId "5012899"]
[BlackFideId "14119846"]
[WhiteElo "2107"]
[BlackElo "2404"]
[Result "0-1"]
[Round "2"]
[TimeControl "180+2"]
[Date "2023.06.06"]
[WhiteClock "0:01:11"]
[BlackClock "0:00:35"]
[Board "112"]

1. e4 {[%clk 0:02:57]}  e5 {[%clk 0:02:59]} 2. Nf3 {[%clk 0:02:56]}  Nc6 {[%clk 0:02:57]} 3. d4 {[%clk 0:02:56]}  exd4 {[%clk 0:02:56]} 4. Nxd4 {[%clk 0:02:57]}  Nf6 {[%clk 0:02:57]} 5. Nc3 {[%clk 0:02:55]}  Bb4 {[%clk 0:02:56]} 6. Nxc6 {[%clk 0:02:51]}  bxc6 {[%clk 0:02:38]} 7. Bd3 {[%clk 0:02:51]}  O-O {[%clk 0:02:33]} 8. O-O {[%clk 0:02:50]}  d5 {[%clk 0:02:33]} 9. exd5 {[%clk 0:02:49]}  cxd5 {[%clk 0:02:33]} 10. Bg5 {[%clk 0:02:48]}  c6 {[%clk 0:02:33]} 11. Qf3 {[%clk 0:02:45]}  Bd6 {[%clk 0:02:32]} 12. Bxf6 {[%clk 0:02:41]}  Qxf6 {[%clk 0:02:33]} 13. Qxf6 {[%clk 0:02:41]}  gxf6 {[%clk 0:02:34]} 14. Rfe1 {[%clk 0:02:37]}  Rb8 {[%clk 0:02:34]} 15. Rab1 {[%clk 0:02:32]}  Be5 {[%clk 0:02:31]} 16. Nd1 {[%clk 0:02:31]}  c5 {[%clk 0:02:23]} 17. b3 {[%clk 0:02:27]}  c4 {[%clk 0:02:20]} 18. Bf1 {[%clk 0:02:25]}  Bf5 {[%clk 0:02:02]} 19. Ne3 {[%clk 0:02:24]}  Bg6 {[%clk 0:01:55]} 20. Nxd5 {[%clk 0:02:21]}  Bxc2 {[%clk 0:01:48]} 21. Rbc1 {[%clk 0:02:18]}  cxb3 {[%clk 0:01:47]} 22. axb3 {[%clk 0:02:18]}  Bxb3 {[%clk 0:01:46]} 23. Rxe5 {[%clk 0:02:16]}  fxe5 {[%clk 0:01:39]} 24. Nf6+ {[%clk 0:02:17]}  Kg7 {[%clk 0:01:38]} 25. Nd7 {[%clk 0:02:18]}  Rfc8 {[%clk 0:01:33]} 26. Rb1 {[%clk 0:02:14]}  Rb4 {[%clk 0:01:09]} 27. Nxe5 {[%clk 0:02:10]}  a5 {[%clk 0:01:08]} 28. Nd3 {[%clk 0:02:08]}  Rbb8 {[%clk 0:01:07]} 29. h4 {[%clk 0:01:52]}  a4 {[%clk 0:01:07]} 30. Ra1 {[%clk 0:01:50]}  Bc4 {[%clk 0:00:53]} 31. Ne5 {[%clk 0:01:49]}  Bxf1 {[%clk 0:00:53]} 32. Kxf1 {[%clk 0:01:50]}  Rb2 {[%clk 0:00:50]} 33. g3 {[%clk 0:01:41]}  Ra8 {[%clk 0:00:48]} 34. Nc4 {[%clk 0:01:34]}  Rb4 {[%clk 0:00:46]} 35. Na3 {[%clk 0:01:33]}  Rc8 {[%clk 0:00:44]} 36. Ke2 {[%clk 0:01:29]}  Rc3 {[%clk 0:00:42]} 37. Kd2 {[%clk 0:01:26]}  Rc6 {[%clk 0:00:30]} 38. Ra2 {[%clk 0:01:22]}  Rcb6 {[%clk 0:00:27]} 39. Nc2 {[%clk 0:01:20]}  Rb2 {[%clk 0:00:22]} 40. Rxb2 {[%clk 0:01:13]}  Rxb2 {[%clk 0:00:23]} 41. Kc3 {[%clk 0:01:14]}  a3 {[%clk 0:00:23]} 42. Nxa3 {[%clk 0:01:12]}  Rxf2 {[%clk 0:00:24]} 43. Nc4 {[%clk 0:01:09]}  Rf3+ {[%clk 0:00:25]} 44. Kd4 {[%clk 0:01:09]}  Rxg3 {[%clk 0:00:25]} 45. Ne5 {[%clk 0:01:09]}  Rh3 {[%clk 0:00:23]} 46. Ke4 {[%clk 0:01:07]}  Rxh4+ {[%clk 0:00:23]} 47. Kf5 {[%clk 0:01:08]}  Rh5+ {[%clk 0:00:24]} 48. Kf4 {[%clk 0:01:08]}  Rxe5 {[%clk 0:00:25]} 49. Kxe5 {[%clk 0:01:09]}  Kg6 {[%clk 0:00:25]} 50. Kf4 {[%clk 0:01:09]}  f5 {[%clk 0:00:26]} 51. Kg3 {[%clk 0:01:10]}  Kg5 {[%clk 0:00:27]} 52. Kh3 {[%clk 0:01:10]}  h5 {[%clk 0:00:28]} 53. Kg3 {[%clk 0:01:10]}  h4+ {[%clk 0:00:29]} 54. Kh3 {[%clk 0:01:11]}  Kh5 {[%clk 0:00:30]} 55. Kh2 {[%clk 0:01:10]}  Kg4 {[%clk 0:00:30]} 56. Kg2 {[%clk 0:01:11]}  f4 {[%clk 0:00:31]} 57. Kh2 {[%clk 0:01:11]}  f3 {[%clk 0:00:32]} 58. Kg1 {[%clk 0:01:11]}  Kg3 {[%clk 0:00:33]} 59. Kh1 {[%clk 0:01:11]}  h3 {[%clk 0:00:34]} 60. Kg1 {[%clk 0:01:11]}  f2+ {[%clk 0:00:35]} 61. Kf1 {[%clk 0:01:11]}  h2 {[%clk 0:00:35]} 0-1


[Site "https://www.chess.com"]

[Event "Titled Tuesday Blitz June 6 Early 2023"]
[White "Floresvillar Gonzalez, Luis Migu"]
[Black "Makarian, Rudik"]
[WhiteFideId "5100542"]
[BlackFideId "44105681"]
[WhiteElo "2040"]
[BlackElo "2451"]
[Result "0-1"]
[Round "2"]
[TimeControl "180+2"]
[Date "2023.06.06"]
[WhiteClock "0:00:15"]
[BlackClock "0:01:28"]
[Board "114"]

1. d4 {[%clk 0:03:00]}  Nf6 {[%clk 0:02:58]} 2. c3 {[%clk 0:02:59]}  b6 {[%clk 0:02:56]} 3. Bg5 {[%clk 0:02:59]}  Bb7 {[%clk 0:02:56]} 4. Nd2 {[%clk 0:02:58]}  e6 {[%clk 0:02:53]} 5. f3 {[%clk 0:02:56]}  d5 {[%clk 0:02:51]} 6. e4 {[%clk 0:02:49]}  h6 {[%clk 0:02:47]} 7. Bxf6 {[%clk 0:02:46]}  Qxf6 {[%clk 0:02:48]} 8. e5 {[%clk 0:02:44]}  Qd8 {[%clk 0:02:47]} 9. Bd3 {[%clk 0:02:38]}  c5 {[%clk 0:02:43]} 10. Ne2 {[%clk 0:02:24]}  Nc6 {[%clk 0:02:43]} 11. Bb5 {[%clk 0:02:16]}  a6 {[%clk 0:02:39]} 12. Bxc6+ {[%clk 0:02:12]}  Bxc6 {[%clk 0:02:40]} 13. O-O {[%clk 0:02:12]}  Be7 {[%clk 0:02:40]} 14. f4 {[%clk 0:02:11]}  g6 {[%clk 0:02:40]} 15. Nf3 {[%clk 0:02:08]}  Rc8 {[%clk 0:02:39]} 16. Rc1 {[%clk 0:02:07]}  a5 {[%clk 0:02:39]} 17. Qd2 {[%clk 0:02:04]}  Bb5 {[%clk 0:02:38]} 18. Rfe1 {[%clk 0:01:57]}  Kf8 {[%clk 0:02:35]} 19. h3 {[%clk 0:01:55]}  Kg7 {[%clk 0:02:33]} 20. Kh2 {[%clk 0:01:50]}  Rc7 {[%clk 0:02:30]} 21. Qd1 {[%clk 0:01:40]}  Qd7 {[%clk 0:02:29]} 22. Ng3 {[%clk 0:01:15]}  a4 {[%clk 0:02:21]} 23. a3 {[%clk 0:01:14]}  Bc4 {[%clk 0:02:07]} 24. Nf1 {[%clk 0:01:11]}  Bxf1 {[%clk 0:02:04]} 25. Rxf1 {[%clk 0:01:10]}  b5 {[%clk 0:02:04]} 26. dxc5 {[%clk 0:01:08]}  Bxc5 {[%clk 0:02:05]} 27. Qd2 {[%clk 0:01:01]}  Rhc8 {[%clk 0:02:01]} 28. Nd4 {[%clk 0:00:59]}  Bxd4 {[%clk 0:02:01]} 29. Qxd4 {[%clk 0:00:58]}  Rc4 {[%clk 0:02:02]} 30. Qe3 {[%clk 0:00:56]}  d4 {[%clk 0:02:02]} 31. cxd4 {[%clk 0:00:53]}  Rxc1 {[%clk 0:02:03]} 32. Rxc1 {[%clk 0:00:53]}  Rxc1 {[%clk 0:02:04]} 33. Qxc1 {[%clk 0:00:52]}  Qxd4 {[%clk 0:02:05]} 34. h4 {[%clk 0:00:44]}  Qf2 {[%clk 0:01:59]} 35. Kh3 {[%clk 0:00:41]}  h5 {[%clk 0:01:56]} 36. Qc3 {[%clk 0:00:39]}  Qxf4 {[%clk 0:01:54]} 37. g3 {[%clk 0:00:38]}  Qf1+ {[%clk 0:01:51]} 38. Kh2 {[%clk 0:00:36]}  Qf2+ {[%clk 0:01:51]} 39. Kh3 {[%clk 0:00:36]}  Qe2 {[%clk 0:01:44]} 40. Qd4 {[%clk 0:00:31]}  Qf1+ {[%clk 0:01:39]} 41. Kh2 {[%clk 0:00:31]}  Qf5 {[%clk 0:01:39]} 42. Qb4 {[%clk 0:00:28]}  Qxe5 {[%clk 0:01:38]} 43. b3 {[%clk 0:00:22]}  Qe2+ {[%clk 0:01:30]} 44. Kg1 {[%clk 0:00:17]}  Qd1+ {[%clk 0:01:30]} 45. Kh2 {[%clk 0:00:16]}  axb3 {[%clk 0:01:28]} 46. Qd4+ {[%clk 0:00:15]}  Qxd4 {[%clk 0:01:28]} 0-1


[Site "https://www.chess.com"]